[Event "13th London Chess Classic 2023"]
[Site "London"]
[Date "2023.12.07"]
[Round "6.1"]
[White "Volokitin, Andrei"]
[Black "Niemann, Hans Moke"]
[Result "1-0"]
[ECO "C67"]
[WhiteElo "2660"]
[BlackElo "2659"]
[Annotator "TA"]
[PlyCount "77"]
[EventDate "2023.11.27"]
[EventType "tourn"]
[EventCountry "ENG"]
[SourceTitle "playchess.com"]
[Source "ChessBase"]
[SourceQuality "1"]
[TimeControl "40/5400+30:1800+30"]

{[%evp 16,77,22,0,0,2,6,6,5,0,10,0,24,8,24,8,20,8,44,43,46,42,140,94,102,86,101,18,6,10,11,12,49,42,114,116,139,141,142,143,91,0,146,133,170,157,191,193,176,163,437,416,400,270,251,0,391,373,530,499,749,728,29984,595]} 1. e4 {[%emt 0:00:03]} e5 {[%emt 0:00:23]} 2. Nf3 {[%emt 0:00:10]} Nc6 {[%emt 0:00:10]} 3. Bb5 {[%emt 0:00:17]} Nf6 {[%emt 0:00:34]} 4. O-O {[%emt 0:00:35]} Nxe4 {[%emt 0:00:13]} 5. d4 {[%emt 0:00:12]} Nd6 {[%emt 0:00:08]} 6. Bxc6 {[%emt 0:00:07]} dxc6 {[%emt 0:00:05]} 7. dxe5 {[%emt 0:00:05]} Nf5 {[%emt 0:00:08]} 8. Qxd8+ {[%emt 0:00:04]} Kxd8 {[%emt 0:00:07]} 9. h3 {[%emt 0:00:09]} Be7 {[%emt 0:00:41] C67: Ruy Lopez: Berlin Defence: 4 0-0 Nxe4.} 10. Nc3 {[%emt 0:00:35][%cal Bb1c3,Bc3e2,Be2f4][%mdl 32]} Nh4 {[%emt 0:00:23] Hoping for ...Nxf3+.} 11. Nxh4 {[%emt 0:00:45]} Bxh4 {[%emt 0:00:40] The position is equal.} 12. Be3 {[%emt 0:00:03]} h5 {[%emt 0:02:13] Black is weak on the dark squares} 13. Ne2 {[%emt 0:28:45]} Ke8 {[%emt 0:01:14] [#]} 14. f3 $5 $146 {[%emt 0:00:24][%cal Bf2f3,Bf3g4,Bg4g5][%mdl 8] An interesting novelty.} ({Predecessor:} 14. Rad1 Be7 15. f4 g6 16. Rd2 h4 17. Nd4 a6 18. Nb3 b6 19. Nd4 c5 20. Nc6 {½-½ Vachier Lagrave,M (2784)-So,W (2770) Airthings Masters KO rapid 2020 (1.11)}) 14... Be7 {[%emt 0:11:13]} 15. g4 {[%emt 0:03:00]} f5 {[%emt 0:01:19]} 16. exf6 {[%emt 0:03:18]} gxf6 {[%emt 0:00:11]} 17. Nf4 {[%emt 0:21:45]} hxg4 {[%emt 0:00:36]} 18. fxg4 {[%emt 0:00:15]} f5 {[%emt 0:03:51]} (18... Kf7 $14) 19. Rae1 {[%emt 0:01:42]} ({White should play} 19. Bd4 Rh7 20. Rae1) 19... Kf7 $16 {[%emt 0:01:06]} 20. Bd4 $36 {[%emt 0:01:35][%mdl 2048] Keeping Black busy.} Rd8 {[%emt 0:14:12] [#]} 21. Rxe7+ {[%emt 0:13:29]} Kxe7 $11 {[%emt 0:00:40]} 22. Bc5+ {[%emt 0:00:03]} Kf7 {[%emt 0:00:30] Strongly threatening ...b6.} 23. g5 $1 {[%emt 0:00:04][%mdl 1024] White has compensation.} Rg8 {[%emt 0:02:35]} 24. h4 {[%emt 0:00:30]} Be6 {[%emt 0:02:04]} (24... b6 $1 $14 25. Bd4 Ba6 26. g6+ Rxg6+ 27. Nxg6 Kxg6 28. h5+ Kg5 29. Be3+ Kxh5 30. Rxf5+ Kg6) 25. Kf2 $1 $16 {[%emt 0:25:05]} Rg6 {[%emt 0:10:07]} 26. Rg1 {[%emt 0:00:00] h5 would be deadly.} Rag8 {[%emt 0:00:06]} 27. Re1 {[%emt 0:00:00]} (27. Bxa7 $6 b6 $14) 27... Re8 {[%emt 0:02:18]} 28. Rg1 {[%emt 0:00:00] White has more active pieces.} (28. b3 $142) 28... Reg8 $1 {[%emt 0:00:31]} 29. Bd4 {[%emt 0:00:00] Prevents a6} (29. Bxa7 $6 b6 $14) 29... Bd5 {[%emt 0:01:01]} 30. Be5 $1 {[%emt 0:00:00]} (30. Bxa7 b6 31. c4 (31. Nxg6 Kxg6 32. Rd1 Ra8 $15) 31... Bxc4 $11) 30... b5 {[%emt 0:02:07]} 31. Bxc7 {[%emt 0:00:18]} Be4 {[%emt 0:00:26][%cal Oe4c2]} 32. Rd1 {[%emt 0:01:03] Rd7+ is the strong threat.} Bxc2 $2 {[%emt 0:02:15]} (32... Bd5 {was called for.} 33. Nxg6 Kxg6) 33. Rd7+ $18 {[%emt 0:00:08]} Ke8 {[%emt 0:00:05]} 34. Rd8+ {[%emt 0:00:14]} Kf7 {[%emt 0:00:07] [#]} 35. Rd7+ {[%emt 0:00:13]} ({Much less strong is} 35. Nxg6 $6 Rxd8 36. Ne5+ (36. Bxd8 Kxg6 37. Kf3 c5 $14) 36... Ke6 $16) (35. Rd2 $142 $1 {[%cal Rd2c2]} Be4 36. Rd7+ Ke8 37. Rd8+ Kf7 38. Nxg6 Rxd8 39. Ne5+ Ke6 40. Bxd8) 35... Ke8 {[%emt 0:00:10] [#]} 36. Rd2 {[%emt 0:00:08][%cal Of4g6]} R6g7 {[%emt 0:03:03]} (36... Be4 {keeps fighting.} 37. Be5 Rxg5) 37. Be5 {[%emt 0:00:30][%cal Oe5g7]} Rh7 {[%emt 0:00:11]} (37... Re7 $142 38. Bf6 (38. Rxc2 Rxe5 39. Rxc6 Kd8 $18) 38... Be4) 38. Bf6 {[%emt 0:00:36] Threatening mate with Rd8+.} Rf8 {[%emt 0:01:06]} 39. Rd8+ {[%emt 0:00:20] Weighted Error Value: White=0.30/Black=0.45} 1-0

[Event "13th London Chess Classic 2023"]
[Site "London"]
[Date "2023.12.07"]
[Round "6.2"]
[White "Bartel, Mateusz"]
[Black "Tabatabaei, M. Amin"]
[Result "0-1"]
[ECO "A19"]
[WhiteElo "2651"]
[BlackElo "2694"]
[Annotator "TA"]
[PlyCount "78"]
[EventDate "2023.11.27"]
[EventType "tourn"]
[EventCountry "ENG"]
[SourceTitle "playchess.com"]
[Source "ChessBase"]
[SourceQuality "1"]
[TimeControl "40/5400+30:1800+30"]

{[%evp 11,78,2,22,4,4,0,24,29,32,10,31,31,35,35,39,-52,-60,-45,63,-33,-29,-34,-50,-76,-57,-62,-70,-85,-91,-210,-227,-212,-225,-201,-178,-180,-175,-203,-202,-203,-183,-541,-534,-638,-633,-627,-591,-743,-15,-315,-471,-514,-464,-508,-503,-427,-446,-567,-554,-518,-517,-705,-654,-835,-891,-866,-866,-810,-810]} 1. c4 {[%emt 0:00:10]} e6 {[%emt 0:00:43]} 2. Nc3 {[%emt 0:00:07]} Nf6 {[%emt 0:00:09]} 3. e4 {[%emt 0:00:15]} c5 {[%emt 0:00:05]} 4. e5 {[%emt 0:00:27]} Ng8 {[%emt 0:00:06]} 5. d4 {[%emt 0:00:07]} cxd4 {[%emt 0:00:08]} 6. Qxd4 {[%emt 0:00:06]} Nc6 {[%emt 0:00:05]} 7. Qf4 {[%emt 0:00:23] is currently scoring better than 7.Qe4. A19: English Opening: Flohr-Mikenas System with 3...c5.} d6 {[%emt 0:06:05]} 8. Nf3 {[%emt 0:00:12]} Nh6 {[%emt 0:00:34] [#]} 9. Qe4 $146 {[%emt 0:00:07] White has an edge.} ({Predecessor:} 9. exd6 Bxd6 10. Qg5 Qxg5 11. Bxg5 f5 12. O-O-O Bc5 13. Ne5 Nf7 14. Nxc6 bxc6 15. Be3 Bxe3+ 16. fxe3 {0-1 Caruana,F (2792)-Rapport,R (2763) Tata Steel-A 84th 2022 (10)}) 9... dxe5 {[%emt 0:08:01]} 10. Bxh6 {[%emt 0:00:10]} gxh6 {[%emt 0:00:06]} 11. Nxe5 {[%emt 0:00:06]} Qb6 {[%emt 0:34:00]} 12. O-O-O {[%emt 0:05:13][%cal Oc4c5]} (12. Be2 {simplifies} Bg7 13. Nxc6 Qxc6 14. Qxc6+ bxc6 15. O-O-O) 12... Bg7 {[%emt 0:00:43]} 13. Na4 {[%emt 0:12:17]} ({White should play} 13. Nxc6 $14 bxc6 14. Na4) 13... Qc7 $36 {[%emt 0:05:46][%mdl 2048] Black is more active.} 14. Nxc6 {[%emt 0:00:14] aiming for Rd8+.} bxc6 {[%emt 0:05:40]} (14... Bd7 $1 $15) 15. g4 {[%emt 0:08:38]} (15. c5 $14) 15... Rb8 {[%emt 0:02:10]} 16. c5 {[%emt 0:03:09]} O-O $1 {[%emt 0:00:18][%cal Bh8f8,Bf8d8,Bd8d5][%mdl 32]} 17. Bd3 {[%emt 0:01:19][%csl Gd3][%cal Re4h7]} Rd8 $1 {[%emt 0:00:13] Hoping for ...Rd4.} 18. Bc2 {[%emt 0:00:35]} Rd5 {[%emt 0:08:19]} 19. f4 {[%emt 0:07:12]} Qa5 {[%emt 0:03:50] Dancing on a razor blade.} (19... f5 20. gxf5 Rxf5 21. Kb1 $16) 20. a3 {[%emt 0:17:06] [#] Repels Rb4} (20. b3 $17) 20... Rxb2 $3 $19 {[%emt 0:10:19][%mdl 512]} 21. Nxb2 {[%emt 0:09:03]} (21. Qxh7+ $2 Kf8 $19) 21... Qxa3 {[%emt 0:00:13][%csl Gg7][%cal Ra3b2]} 22. Rxd5 {[%emt 0:00:15]} Bxb2+ {[%emt 0:02:48]} 23. Kd2 {[%emt 0:07:00]} (23. Kd1 $2 cxd5 24. Qxh7+ Kf8 $19) 23... cxd5 {[%emt 0:00:49]} (23... exd5 $2 24. Qxh7+ Kf8 25. Qxh6+ Ke8 26. Re1+ Be6 27. Rxe6+ fxe6 28. Qxe6+ Kf8 29. Qd6+ (29. Qxc6 Qc3+ {[%mdl 64] Deflection} 30. Ke2 Qxc2+ 31. Kf3 Qd3+ 32. Kg2 Qe2+ 33. Kh3 Bc3 $15) 29... Kg8 30. Qd8+ (30. Qxc6 Qc3+ {[%mdl 64] Deflection} 31. Ke2 Qxc2+ 32. Kf3 Qe4+ 33. Kg3 Qe3+ 34. Kg2 Qxf4 $17) 30... Kf7 31. Qd7+ Kf8 32. Qd8+ (32. Qxc6 Qc3+ {[%mdl 64] Deflection} 33. Ke2 Qxc2+ 34. Kf3 Qd3+ 35. Kg2 Qe2+ 36. Kh3 Qe3+ 37. Kh4 Qe1+ 38. Kh3 Qc3+ 39. Kg2 Qd2+ 40. Kf3 Qd3+ 41. Kg2 Qe4+ 42. Kg3 Qe3+ 43. Kh4 a5 $17) 32... Kf7 33. Qd7+ Kf8 34. Qd8+ (34. Qxc6 Qc3+ {[%mdl 64] Deflection} 35. Ke2 Qxc2+ 36. Kf3 Qe4+ 37. Kg3 Qe3+ 38. Kh4 a5 $15) 34... Kf7 $18) 24. Qe3 {[%emt 0:02:18] Against Qc3+} Qb4+ {[%emt 0:01:26]} 25. Ke2 {[%emt 0:01:12]} Ba6+ {[%emt 0:01:06]} 26. Bd3 $2 {[%emt 0:01:51]} (26. Kf3 {nothing else works.}) 26... Bd4 $1 {[%emt 0:01:02]} ({Avoid the trap} 26... Bxd3+ $2 27. Qxd3 Qxf4 28. h3 $19) 27. Qd2 {[%emt 0:00:01]} Bc3 {[%emt 0:00:10] This pair of bishops is nice.} (27... Qxc5 $2 28. Bxa6 Bc3 29. Qe3 $18) 28. Qe3 {[%emt 0:00:24] [#]} Qb2+ $1 {[%emt 0:03:43]} 29. Kf3 {[%emt 0:01:00] Threatens to win with Rb1.} Bd2 $2 {[%emt 0:03:55]} (29... Bb7 $19 {And now ...d4+ would win.} 30. Qg1 d4+ 31. Kg3 Qd2) 30. Rb1 $2 {[%emt 0:00:05][%mdl 8192] Loses the game.} (30. Qe2 $1 $11 {and White is okay.} Qc3 31. Rd1 Bxd3 32. Qxd2 Be4+ 33. Ke2 Qf3+ 34. Ke1) 30... Qxb1 {[%emt 0:00:49]} 31. Bxb1 {[%emt 0:00:02] Black is clearly winning.} Bxe3 {[%emt 0:00:06]} 32. Kxe3 {[%emt 0:00:05][%mdl 4096] Endgame KB-KB} Bb7 {[%emt 0:00:52]} 33. Kd4 {[%emt 0:01:02]} f6 {[%emt 0:00:06] ...Bc6 is the strong threat.} 34. Bd3 {[%emt 0:01:10] [#]} Bc6 {[%emt 0:00:05] Dodges Bb5} 35. Ba6 {[%emt 0:00:09]} Kf7 {[%emt 0:00:25]} 36. h4 {[%emt 0:03:06] [#]} h5 $1 {[%emt 0:02:03]} 37. g5 {[%emt 0:06:10] [#]} (37. gxh5 h6) 37... e5+ $1 {[%emt 0:00:08]} 38. Ke3 {[%emt 0:00:09]} fxg5 {[%emt 0:01:06]} 39. fxg5 {[%emt 0:00:17] [#]} h6 $1 {[%emt 0:00:29] A cool game by Tabatabaei.   Weighted Error Value: White=0.60/Black=0.16 (very precise)} 0-1

[Event "13th London Chess Classic 2023"]
[Site "London"]
[Date "2023.12.07"]
[Round "6.3"]
[White "Vitiugov, Nikita"]
[Black "Royal, Shreyas"]
[Result "1/2-1/2"]
[ECO "B67"]
[WhiteElo "2712"]
[BlackElo "2404"]
[Annotator "TA"]
[PlyCount "166"]
[EventDate "2023.11.27"]
[EventType "tourn"]
[EventCountry "ENG"]
[SourceTitle "playchess.com"]
[Source "ChessBase"]
[SourceQuality "1"]
[TimeControl "40/5400+30:1800+30"]

{[%evp 20,166,35,11,15,8,26,0,55,-8,0,-20,0,-34,-27,-37,22,-27,-28,-45,-25,-54,-16,-29,53,30,25,31,29,35,28,25,52,44,42,39,129,133,125,133,122,126,172,171,165,154,199,185,178,154,175,94,206,85,60,36,169,112,155,153,162,0,0,0,0,0,0,0,0,0,0,0,0,0,0,0,0,0,0,0,0,0,0,0,360,281,607,219,569,568,472,581,559,478,534,521,519,478,592,221,221,221,221,221,221,221,142,156,168,164,162,167,373,299,281,263,2314,2671,5073,1987,2112,651,239,0,0,0,0,0,0,0,0,0,0,0,0,0,0,0,0,0,0,0,0,0,0,0,0,-8,-8]} 1. e4 {[%emt 0:00:21]} c5 {[%emt 0:00:07]} 2. Nf3 {[%emt 0:00:29]} d6 {[%emt 0:00:07]} 3. d4 {[%emt 0:00:22]} cxd4 {[%emt 0:00:10]} 4. Nxd4 {[%emt 0:00:06]} Nf6 {[%emt 0:00:10]} 5. Nc3 {[%emt 0:00:07]} Nc6 {[%emt 0:00:27]} 6. Bg5 {[%emt 0:01:24]} e6 {[%emt 0:00:15]} 7. Qd2 {[%emt 0:00:52]} a6 {[%emt 0:00:18]} 8. O-O-O {[%emt 0:00:39]} Bd7 {[%emt 0:00:08]} 9. f3 {[%emt 0:00:48]} Nxd4 {[%emt 0:00:56]} 10. Qxd4 {[%emt 0:00:03]} Be7 {[%emt 0:00:41]} 11. h4 {[%emt 0:04:16]} Qc7 {[%emt 0:00:25] B67: Sicilian: Richter-Rauzer: 7...a6 8 0-0-0 Bd7, lines without 9 f4 Be7.} 12. Kb1 {[%emt 0:02:11]} b5 {[%emt 0:00:33]} 13. Bd3 {[%emt 0:04:45]} b4 {[%emt 0:09:19]} 14. Ne2 {[%emt 0:01:53]} (14. Qxb4 $14 d5 15. Qd4) 14... a5 $11 {[%emt 0:02:12]} 15. g4 {[%emt 0:09:29]} (15. h5 $5 {[%cal Rh5h6]}) 15... O-O {[%emt 0:18:26]} 16. Bc1 {[%emt 0:10:42] [#]} (16. h5 $5 {[%cal Rh5h6]}) 16... e5 $146 {[%emt 0:15:40]} ({Predecessor:} 16... a4 17. Qxb4 Rab8 18. Qc3 Qb7 19. h5 Rfc8 20. Qd2 a3 21. b3 d5 22. e5 Ne8 {1-0 Ivic,V (2560)-Espinosa,P (2116) Titled Tuesday intern op 29th Nov Late blitz 2022 (2)}) 17. Qf2 {[%emt 0:00:49]} Be6 {[%emt 0:01:15]} (17... a4 $15) 18. Ng3 {[%emt 0:10:52]} (18. g5 $142 Nd7 19. f4) 18... Rfc8 {[%emt 0:05:45]} 19. Nf5 {[%emt 0:05:37]} Bf8 {[%emt 0:03:01]} 20. h5 {[%emt 0:09:51]} Nd7 {[%emt 0:02:41]} 21. Ne3 {[%emt 0:10:09] Active counter play!} Nb6 {[%emt 0:02:34] [#]} (21... Nc5 $11) 22. Nd5 $1 {[%emt 0:01:31]} Nxd5 {[%emt 0:11:46]} 23. exd5 {[%emt 0:00:08]} Bxd5 {[%emt 0:00:55] [#]} 24. Bxh7+ $1 {[%emt 0:00:42][%mdl 64] Discovered Attack} Kxh7 {[%emt 0:00:05]} 25. Rxd5 {[%emt 0:00:03]} a4 {[%emt 0:00:31]} 26. Qe2 {[%emt 0:04:32] Inhibits Ra6.} Kg8 {[%emt 0:01:59][%cal Oa8a6]} 27. Qd3 {[%emt 0:04:02] Prevents Ra6} b3 {[%emt 0:07:52]} 28. cxb3 $16 {[%emt 0:01:32]} axb3 {[%emt 0:00:06]} 29. Qxb3 {[%emt 0:00:22]} Rcb8 {[%emt 0:02:11]} 30. Rb5 {[%emt 0:01:50]} Qa7 {[%emt 0:02:55]} (30... Rxb5 $16 {might work better.} 31. Qxb5 Rc8) 31. Rxb8 $18 {[%emt 0:00:57]} Rxb8 {[%emt 0:00:01]} 32. Qd3 {[%emt 0:00:23]} Qf2 {[%emt 0:01:29]} 33. g5 {[%emt 0:01:21]} Qg2 {[%emt 0:02:17]} 34. Re1 {[%emt 0:05:36]} Qh2 {[%emt 0:10:13]} 35. a4 {[%emt 0:01:12]} (35. h6 $1 $18) 35... Be7 {[%emt 0:00:00]} (35... Qxh5 $16 36. a5 g6) 36. Qf5 {[%emt 0:04:34]} (36. h6 $18 {is more deadly.}) 36... Qxh5 $16 {[%emt 0:00:00]} 37. a5 {[%emt 0:00:06]} (37. f4 $5 {[%cal Rf4e5]}) 37... Qh4 {[%emt 0:00:00]} ({Black should play} 37... Bd8 $14) 38. Re4 $18 {[%emt 0:00:52]} Qf2 {[%emt 0:02:00]} 39. Rc4 {[%emt 0:00:56] Black must now prevent Rc2.} g6 {[%emt 0:00:00]} 40. Qh3 {[%emt 0:00:00]} (40. Qd3 $18) 40... Bf8 $1 $11 {[%emt 0:00:00]} 41. Rc8 {[%emt 0:12:23]} Rxc8 {[%emt 0:02:55]} 42. Qxc8 {[%emt 0:00:09]} Qxf3 {[%emt 0:00:05][%mdl 4096] Endgame KQB-KQB} 43. a6 {[%emt 0:03:06]} Qe4+ {[%emt 0:02:06]} 44. Qc2 {[%emt 0:00:11]} Qa8 {[%emt 0:00:34]} 45. Qa4 {[%emt 0:00:05]} d5 {[%emt 0:00:06]} 46. Qb5 {[%emt 0:00:14]} Qa7 {[%emt 0:06:25] Dodges Qb6} 47. Bd2 {[%emt 0:02:51]} (47. Qb7 Qxb7 48. axb7 Bd6 $17) 47... d4 $1 {[%emt 0:02:08]} 48. Ba5 {[%emt 0:00:45]} Qa8 $1 {[%emt 0:03:57]} 49. Bb6 {[%emt 0:02:01] a7 would be deadly.} (49. Qxe5 Qxa6 50. Qd5 Bg7 $17) 49... Qe4+ $1 {[%emt 0:01:35]} 50. Ka2 {[%emt 0:00:10] Threatens to win with a7.} d3 {[%emt 0:00:05]} 51. Ba5 {[%emt 0:00:03] Repels d2. Strongly threatening Bc3.} Qd4 {[%emt 0:03:36][%mdl 8192]} (51... Qe3 $1 $11 {and Black stays safe.}) 52. Bc3 $18 {[%emt 0:00:59]} Qe3 {[%emt 0:00:21]} (52... Qc5 53. Qxd3 Qc6) 53. Qd5 $2 {[%emt 0:08:13]} (53. Qxe5 Qxe5 54. Bxe5 d2 $11) (53. Qa5 {White threatens a7 and mate.} Qe4 54. a7 (54. Bxe5 $2 Qc4+ 55. Kb1 Qc2+ 56. Ka2 d2 $19)) 53... Qf4 $2 {[%emt 0:04:51]} (53... Qc5 {is tougher.} 54. Qxd3 (54. Qxe5 Qxe5 55. Bxe5 d2 $11) 54... Qc6) 54. Kb3 {[%emt 0:00:43] aiming for a7.} (54. Qxe5 Qa4+ 55. Kb1 Qd1+ 56. Ka2 Qa4+ 57. Kb1 Qd1+ 58. Ka2 Qa4+ $11) 54... Qf1 {[%emt 0:01:17][%cal Od3d2]} 55. Qxe5 {[%emt 0:02:50][%csl Gc3][%cal Re5h8]} Qd1+ {[%emt 0:00:05]} 56. Kc4 $1 {[%emt 0:00:03][%csl Gc3][%cal Re5h8]} Qa4+ {[%emt 0:00:05]} 57. Kd5 {[%emt 0:01:29][%csl Gc3][%cal Re5h8]} (57. Kxd3 Qxa6+ 58. Kc2 Qa4+ 59. b3 Qh4 $18) 57... Qd7+ {[%emt 0:02:55]} 58. Ke4 {[%emt 0:00:14][%csl Gc3][%cal Re5h8]} f5+ {[%emt 0:00:17]} 59. gxf6 $2 {[%emt 0:00:22]} (59. Kf3 {And now Qh8+ would win.} d2 60. Qh8+ Kf7 61. Qh7+ Ke8 62. Qxd7+ (62. Qxg6+ Kd8 $14) 62... Kxd7 63. Bxd2) 59... d2 {[%emt 0:00:46] [#]} 60. Bxd2 $1 {[%emt 0:00:17][%mdl 576] Qd5+ would kill now. Promotion} Qa4+ {[%emt 0:00:04]} 61. Qd4 {[%emt 0:01:44]} Qxa6 {[%emt 0:00:09]} 62. Qd5+ {[%emt 0:00:05]} Kh8 {[%emt 0:00:10] [#]} 63. Bc3 $1 {[%emt 0:00:49]} Qe2+ {[%emt 0:00:50]} 64. Kd4 {[%emt 0:00:22]} Qd1+ {[%emt 0:01:59]} 65. Kc4 {[%emt 0:00:14]} Qa4+ $2 {[%emt 0:00:52]} (65... Qe2+ 66. Kb3 Qf2) 66. b4 {[%emt 0:00:15][%cal Bb2b4,Bb4b5][%mdl 32]} Qa2+ {[%emt 0:00:48]} 67. Kd4 {[%emt 0:00:02]} Qa7+ $2 {[%emt 0:01:11]} (67... Qf2+ 68. Kd3 Qf1+ 69. Kc2 Qf5+ 70. Qxf5 gxf5) 68. Kd3 {[%emt 0:00:13]} Kh7 {[%emt 0:00:06]} 69. b5 {[%emt 0:01:24][%cal Ob5b6] Hoping for b6!} Qa3 {[%emt 0:01:07]} 70. f7 {[%emt 0:02:27]} (70. b6 $142 Qa6+ 71. Kc2 Qa4+ 72. Kb1) 70... Qc1 {[%emt 0:00:59] [#]} 71. Qe5 $2 {[%emt 0:02:24]} (71. Kc4 $1 $18 {b6 is the strong threat.} Qb1 72. Qg2) 71... Qd1+ $11 {[%emt 0:00:45] The position is equal.} 72. Ke3 {[%emt 0:00:22][%csl Gc3][%cal Re5h8]} Qg1+ {[%emt 0:00:32]} 73. Ke2 {[%emt 0:00:17][%csl Gc3][%cal Re5h8]} Qg2+ {[%emt 0:00:48]} 74. Kd3 {[%emt 0:00:16][%csl Gc3][%cal Re5h8]} Qf3+ {[%emt 0:00:22]} 75. Kc2 {[%emt 0:01:11][%csl Gc3][%cal Re5h8]} Qf2+ {[%emt 0:00:07]} 76. Kc1 {[%emt 0:00:11][%csl Gc3][%cal Re5h8]} ({Don't play} 76. Kd3 Qf1+ 77. Qe2 Qf5+ 78. Kd2 (78. Qe4 Qxb5+ 79. Kc2 Qf5 $11) 78... Qxf7 $14) 76... Qf1+ {[%emt 0:00:23]} (76... Ba3+ $2 77. Kd1 Qf3+ 78. Kc2 $18) 77. Kb2 {[%emt 0:00:09][%csl Gc3][%cal Re5h8]} Qf2+ {[%emt 0:00:08]} 78. Kb1 {[%emt 0:00:01][%csl Gc3][%cal Re5h8]} Qf1+ {[%emt 0:00:23]} 79. Kc2 {[%emt 0:00:08][%csl Gc3][%cal Re5h8] Some like it hot} Qf2+ {[%emt 0:00:04]} 80. Kd3 {[%emt 0:00:04][%csl Gc3][%cal Re5h8]} Qf3+ {[%emt 0:00:05]} 81. Qe3 {[%emt 0:00:16]} (81. Kc2 $5 Qf2+ $8 $14) 81... Qf5+ {[%emt 0:00:48]} 82. Qe4 {[%emt 0:01:35]} Qxb5+ {[%emt 0:00:26]} 83. Kc2 {[%emt 0:00:24]} Qf5 {[%emt 0:00:07] Black escapes into a draw.   Weighted Error Value: White=0.36/Black=0.41} 1/2-1/2

[Event "13th London Chess Classic 2023"]
[Site "London"]
[Date "2023.12.07"]
[Round "6.4"]
[White "Gukesh D"]
[Black "McShane, Luke J"]
[Result "1-0"]
[ECO "D35"]
[WhiteElo "2746"]
[BlackElo "2626"]
[Annotator "TA"]
[PlyCount "81"]
[EventDate "2023.11.27"]
[EventType "tourn"]
[EventCountry "ENG"]
[SourceTitle "playchess.com"]
[Source "ChessBase"]
[SourceQuality "1"]
[TimeControl "40/5400+30:1800+30"]

{[%evp 13,81,-8,7,12,12,-7,15,10,19,18,33,16,29,7,16,14,14,0,10,0,0,0,0,10,11,-16,8,14,16,0,0,0,-9,-10,7,6,4,0,15,5,15,7,22,0,-16,0,0,-20,0,-17,29,0,0,0,-12,-13,-11,-5,0,0,271,241,342,338,568,572,566,549,504,481]} 1. d4 {[%emt 0:00:06]} Nf6 {[%emt 0:01:28]} 2. c4 {[%emt 0:00:04]} e6 {[%emt 0:00:06]} 3. Nf3 {[%emt 0:00:18]} d5 {[%emt 0:00:08]} 4. Nc3 {[%emt 0:00:42]} Be7 {[%emt 0:00:14]} 5. cxd5 {[%emt 0:02:37]} exd5 {[%emt 0:00:13]} 6. Bf4 {[%emt 0:00:49]} c6 {[%emt 0:00:59]} 7. e3 {[%emt 0:00:09]} Bf5 {[%emt 0:03:33]} 8. Nh4 $1 {[%emt 0:00:08][%mdl 4] is currently scoring better than 8.Bd3. D35: Queen's Gambit Declined: Exchange Variation.} Bg4 {[%emt 0:08:01]} 9. Qc2 {[%emt 0:00:08]} Nbd7 {[%emt 0:07:15]} 10. h3 {[%emt 0:09:51] The position is equal.} Be6 {[%emt 0:00:36]} 11. Nf3 {[%emt 0:02:01]} Rc8 {[%emt 0:19:31]} 12. Be2 {[%emt 0:12:52] [#]} g6 $146 {[%emt 0:03:46]} ({Predecessor:} 12... Qa5 13. O-O h6 14. a3 O-O 15. b4 Qd8 16. Rfc1 Nb6 17. Qb3 Ne4 18. Bd3 g5 19. Bh2 Bd6 20. Bxd6 Nxd6 {0-1 Lange,L (1725)-Juergens,N (1974) Bad Sooden-Allendorf Seniors op 14th 2002 (2)}) 13. Bd3 {[%emt 0:02:36]} O-O {[%emt 0:12:33]} 14. O-O {[%emt 0:00:57]} Nh5 {[%emt 0:02:41]} 15. Bh6 {[%emt 0:16:09]} Ng7 {[%emt 0:02:09]} 16. Ne2 {[%emt 0:00:55]} Re8 {[%emt 0:02:25]} 17. g4 {[%emt 0:00:53]} c5 {[%emt 0:07:06]} 18. dxc5 {[%emt 0:09:00]} Nxc5 {[%emt 0:00:06]} 19. Nf4 {[%emt 0:06:26]} Bf6 {[%emt 0:05:44]} 20. Bb5 {[%emt 0:03:45]} Rf8 {[%emt 0:01:05]} 21. Rab1 {[%emt 0:05:36]} Qb6 {[%emt 0:02:53]} 22. Qe2 {[%emt 0:03:21]} Rfd8 {[%emt 0:00:51]} 23. Nd4 {[%emt 0:05:55]} Ne8 {[%emt 0:04:20][%cal Bg7e8,Be8d6,Bd6e4][%mdl 32]} 24. Rfd1 {[%emt 0:04:27]} Nd6 {[%emt 0:02:22]} 25. Bd3 {[%emt 0:00:46]} Nde4 {[%emt 0:03:32]} 26. Bc2 {[%emt 0:02:24]} a5 {[%emt 0:01:23]} 27. Kg2 {[%emt 0:01:39]} (27. f3 $5 Nd6 $8 28. Kg2 $11) 27... Qc7 {[%emt 0:02:53]} 28. Ndxe6 {[%emt 0:03:48]} fxe6 {[%emt 0:01:06]} (28... Nxe6 29. Bxe4 dxe4 30. Nxe6 fxe6 31. Rbc1 $14) 29. Bxe4 {[%emt 0:00:31]} dxe4 {[%emt 0:00:08]} 30. Rbc1 {[%emt 0:00:50]} Rxd1 {[%emt 0:02:55]} (30... Kf7 $5 {[%cal Rd8d1]}) 31. Qxd1 {[%emt 0:00:01]} Qc6 {[%emt 0:00:46]} (31... Bxb2 $2 32. Nxe6 Qe7 33. Rxc5 Rxc5 34. Nxc5 $18) (31... Qe7 $142) 32. b3 {[%emt 0:01:21] [#] Hoping for g5.} (32. g5 $5 Bxb2 33. Rc2 $14) 32... Rd8 {[%emt 0:01:23]} 33. Qe2 {[%emt 0:02:06] aiming for g5.} b6 {[%emt 0:00:24]} 34. a3 {[%emt 0:00:22] Threatens to win with b4.} Qd7 {[%emt 0:01:14]} 35. Qc4 {[%emt 0:01:25]} Nd3 {[%emt 0:00:54]} 36. Rd1 {[%emt 0:00:31]} (36. Qxe6+ $2 Qxe6 37. Nxe6 Nxc1 $19) 36... Nxf4+ {[%emt 0:01:15][%mdl 8192]} (36... Kf7 $11 37. Kg1 (37. Qxe4 $2 {is the wrong capture.} Nxf4+ 38. Qxf4 Qc6+ 39. e4 Rxd1 $19) 37... Qe7) 37. exf4 $18 {[%emt 0:00:06][%cal Be3f4,Bf4e5][%mdl 32]} Qe8 {[%emt 0:00:22]} (37... b5 $142 38. Qxe4 (38. Rxd7 bxc4 39. Rxd8+ Bxd8 $16) 38... Qc8 39. Rxd8+ Bxd8) 38. Rxd8 {[%emt 0:00:07][%mdl 64] [#] Deflection} Bxd8 {[%emt 0:00:02]} (38... Qxd8 39. Qxe6+ Kh8) 39. Qd4 {[%emt 0:00:35][%csl Gh6][%cal Rd4g7] White is clearly winning.} (39. Qxe4 Qd7 40. Qe5 Qd5+ 41. Kg3 Qxe5 42. fxe5 b5 $16) 39... e5 {[%emt 0:00:55]} 40. Qd5+ {[%emt 0:00:00]} ({Less strong is} 40. Qxe5 Qxe5 41. fxe5 Kf7 $16) 40... Kh8 {[%emt 0:00:00]} 41. fxe5 {[%emt 0:01:23] Weighted Error Value: White=0.06 (flawless) /Black=0.32} 1-0